bitfinex-derivatives/quotes_BTCF0:USTF0_20250130
["timestamp","ask_amount","ask_price","bid_price","bid_amount"]
[1738248339858,0.31346915,105280.0,105270.0,0.190016]
[1738248339859,0.00142564,105280.0,105270.0,0.190016]
[1738248340060,0.06315205,105290.0,105280.0,0.189998]
[1738248340361,0.06315205,105290.0,105280.0,0.73836116]
[1738248340568,0.06315205,105290.0,105280.0,0.80106116]
[1738248340963,0.06315205,105290.0,105280.0,0.86396116]
[1738248341358,0.06315205,105290.0,105280.0,0.83260116]
[1738248341661,0.06315205,105290.0,105280.0,0.550798]
[1738248341862,0.06315205,105290.0,105280.0,0.582158]
[1738248342667,0.06315205,105290.0,105280.0,0.583158]
[1738248343262,0.06315205,105290.0,105280.0,0.73936116]
[1738248343659,0.06315205,105290.0,105280.0,0.74888149]
[1738248343966,0.06315205,105290.0,105280.0,0.59267833]
[1738248344262,0.63906616,105300.0,105280.0,0.59267833]
[1738248344461,0.63906616,105300.0,105290.0,0.3608]
[1738248345262,0.482863,105300.0,105290.0,0.3608]
[1738248345459,0.2929,105300.0,105290.0,0.55078]
[1738248345668,0.2929,105300.0,105290.0,0.55178]
[1738248346573,0.2258,105300.0,105290.0,0.55178]
[1738248346870,0.2258,105300.0,105290.0,0.65573774]
[1738248347059,0.1,105300.0,105290.0,0.65573774]
[1738248347262,0.1,105300.0,105290.0,0.72503774]
[1738248347458,0.1,105300.0,105290.0,0.62108]
[1738248347967,0.20395774,105300.0,105290.0,0.62108]
[1738248348266,0.20395774,105300.0,105290.0,0.55278]
[1738248350572,0.20395774,105300.0,105290.0,0.55178]
[1738248350865,0.1,105300.0,105290.0,0.55178]
[1738248351370,0.20395774,105300.0,105290.0,0.55078]
[1738248351765,0.39391874,105300.0,105290.0,0.3608]
[1738248352665,0.49787648,105300.0,105290.0,0.3608]
[1738248353570,0.18998,105290.0,105280.0,0.37032033]
[1738248353767,0.48063774,105290.0,105280.0,0.37032033]
[1738248354972,0.48063774,105290.0,105280.0,0.37232033]
[1738248355271,0.58459548,105290.0,105280.0,0.002]
[1738248355470,0.48063774,105290.0,105280.0,0.002]
[1738248355665,0.51199774,105290.0,105280.0,0.002]
[1738248355969,0.51199774,105290.0,105280.0,0.3628]
[1738248356364,0.48063774,105290.0,105280.0,0.3628]
[1738248356559,0.51199774,105290.0,105280.0,0.3628]
[1738248359565,0.29065774,105290.0,105280.0,0.552798]
[1738248360267,0.51600125,105300.0,105290.0,0.18998]
[1738248360473,0.51600125,105300.0,105290.0,0.64594]
[1738248360667,0.61995899,105300.0,105290.0,0.55078]
[1738248360873,0.80991999,105300.0,105290.0,0.55078]
[1738248361269,0.61995899,105300.0,105290.0,0.3608]
[1738248361459,0.61995899,105300.0,105290.0,0.55078]
[1738248361659,0.80991999,105300.0,105290.0,0.3608]
[1738248362268,0.44987202,105300.0,105290.0,0.55078]
[1738248362676,0.34591428,105300.0,105290.0,0.55078]
[1738248364374,0.18998,105290.0,105280.0,0.3608]
[1738248364576,0.35703774,105290.0,105280.0,0.3608]
[1738248365379,0.35703774,105290.0,105270.0,0.53055868]
[1738248365380,0.189998,105280.0,105270.0,0.53055868]
[1738248365582,0.41935574,105280.0,105270.0,0.53055868]
[1738248367174,0.41935574,105280.0,105270.0,0.53155868]
[1738248367567,0.41935574,105280.0,105270.0,0.54112392]
[1738248367779,0.41935574,105280.0,105270.0,0.54512392]
[1738248367981,0.52331348,105280.0,105270.0,0.54512392]
[1738248368284,0.52331348,105280.0,105270.0,0.18432392]
[1738248368681,0.56131228,105280.0,105270.0,0.37550784]
[1738248368891,0.14195654,105280.0,105270.0,0.70080158]
[1738248369177,0.14195654,105280.0,105270.0,0.82400158]
[1738248369384,0.14195654,105280.0,105270.0,2.21400158]
[1738248369567,0.14195654,105280.0,105270.0,0.72004384]
[1738248369767,0.14195654,105280.0,105270.0,0.82400158]
[1738248369970,0.14195654,105280.0,105270.0,2.21400158]
[1738248370982,0.14195654,105280.0,105270.0,2.11004384]
[1738248371176,0.14195654,105280.0,105270.0,0.72004384]
[1738248371875,0.415768,105300.0,105280.0,0.189998]
[1738248372074,0.51972574,105300.0,105290.0,0.3608]
[1738248373079,0.32975774,105300.0,105290.0,0.7216]
[1738248373387,0.2258,105300.0,105290.0,0.91158]
[1738248373780,0.32975774,105300.0,105290.0,0.91158]
[1738248373988,0.62367648,105300.0,105290.0,0.7216]
[1738248374282,0.51971874,105300.0,105290.0,0.7216]
[1738248375179,0.415761,105300.0,105290.0,0.7216]
[1738248375377,0.51971874,105300.0,105290.0,0.7216]
[1738248376287,0.45561874,105300.0,105290.0,0.91158]
[1738248376785,0.45561874,105300.0,105290.0,0.9429]
[1738248377182,0.45561874,105300.0,105290.0,0.75292]
[1738248378889,0.45561874,105300.0,105290.0,0.7216]
[1738248381387,0.45561874,105300.0,105290.0,0.73121642]
[1738248381784,0.45561874,105300.0,105290.0,0.00961642]
[1738248381785,0.55957648,105300.0,105290.0,0.00961642]
[1738248381981,0.45561874,105300.0,105290.0,0.3608]
[1738248382394,0.55957648,105300.0,105290.0,0.3608]
[1738248382593,0.45561874,105300.0,105290.0,0.3608]
[1738248383083,0.55957648,105300.0,105290.0,0.3608]
[1738248383483,0.45561874,105300.0,105290.0,0.3608]
[1738248383689,0.55957648,105300.0,105290.0,0.3608]
[1738248383986,0.45561874,105300.0,105290.0,0.3608]
[1738248384187,0.55957648,105300.0,105290.0,0.3608]
[1738248384396,0.59757528,105300.0,105290.0,0.3608]
[1738248385691,0.70153302,105300.0,105290.0,0.3608]
[1738248385997,0.59757528,105300.0,105290.0,0.3608]
[1738248387082,0.70153302,105300.0,105290.0,0.3608]
[1738248387282,0.18998,105290.0,105280.0,0.37030341]
[1738248387487,0.29393774,105290.0,105280.0,0.37030341]
[1738248388293,0.29393774,105290.0,105280.0,0.00950341]
[1738248388595,0.189998,105280.0,105270.0,0.3609426]
[1738248388782,0.1217,105280.0,105270.0,0.5509586]
[1738248388982,0.189998,105280.0,105270.0,0.3609426]
[1738248389186,0.29395574,105280.0,105270.0,0.3609426]
[1738248389684,0.29395574,105280.0,105270.0,0.3619426]
[1738248390283,0.29395574,105280.0,105270.0,0.3659426]
[1738248391886,0.39791348,105280.0,105270.0,0.0051426]
[1738248392083,0.29395574,105280.0,105270.0,0.0051426]
[1738248392981,0.43591228,105280.0,105270.0,0.0051426]
[1738248393896,0.53987002,105280.0,105270.0,0.0051426]
[1738248394394,0.43591228,105280.0,105270.0,0.0051426]
[1738248394898,0.43591228,105280.0,105270.0,0.3659426]
[1738248396188,0.53987002,105280.0,105270.0,0.3659426]
[1738248396389,0.53987002,105280.0,105270.0,0.0051426]
[1738248396390,0.43591228,105280.0,105270.0,0.0051426]
[1738248396691,0.93199002,105280.0,105270.0,0.0051426]
[1738248396893,0.57119002,105280.0,105270.0,0.0051426]
[1738248397089,0.93199002,105280.0,105270.0,0.0051426]
[1738248398004,1.10207699,105280.0,105270.0,0.0051426]
[1738248398200,0.63731925,105280.0,105270.0,0.3659426]
[1738248399496,0.60599925,105280.0,105270.0,0.3659426]
[1738248400194,0.60599925,105280.0,105270.0,0.0051426]
[1738248400395,0.70995699,105280.0,105270.0,0.0051426]
[1738248400790,1.07075699,105280.0,105270.0,0.0051426]
[1738248401191,0.96679925,105280.0,105270.0,0.0051426]
[1738248401894,0.60599925,105280.0,105270.0,0.3659426]
[1738248406297,0.50204151,105280.0,105270.0,0.3659426]
[1738248406601,0.60599925,105280.0,105270.0,0.4298426]
[1738248408002,0.41600125,105280.0,105270.0,0.6198586]
[1738248408199,0.31204351,105280.0,105270.0,0.78781634]
[1738248408503,0.26993872,105280.0,105270.0,0.78781634]
[1738248408695,0.09985175,105280.0,105270.0,0.78781634]
[1738248411008,0.36882613,105290.0,105280.0,0.189998]
[1738248411194,0.36882613,105290.0,105280.0,0.68603574]
[1738248412605,0.21362552,105300.0,105280.0,0.49603774]
[1738248412799,0.21362552,105300.0,105290.0,0.550779]
[1738248414102,0.21362552,105300.0,105290.0,0.71943674]
[1738248414406,0.0460672,105300.0,105290.0,0.85467448]
[1738248414596,0.0460672,105300.0,105290.0,0.71943674]
[1738248414794,0.0460672,105300.0,105290.0,2.10943674]
[1738248415200,0.15002494,105300.0,105290.0,0.550779]
[1738248415397,0.15002494,105300.0,105290.0,0.3608]
[1738248415598,0.21032494,105300.0,105290.0,0.3608]
[1738248415804,0.1063672,105300.0,105290.0,0.3608]
[1738248416099,0.1063672,105300.0,105290.0,0.55078]
[1738248416504,0.2963282,105300.0,105290.0,0.3608]
[1738248416799,0.2963282,105300.0,105290.0,0.37012297]
[1738248416995,0.1063672,105300.0,105290.0,0.37012297]
[1738248417202,0.0603,105300.0,105290.0,0.47408071]
[1738248417602,0.0603,105300.0,105290.0,0.37012297]
[1738248417803,0.250261,105300.0,105290.0,0.37012297]
[1738248419209,0.0603,105300.0,105290.0,0.47408071]
[1738248419615,0.0603,105300.0,105290.0,0.37012297]
[1738248420619,0.0603,105300.0,105280.0,0.92084182]
[1738248420620,0.45817648,105300.0,105280.0,0.3608]
[1738248420813,0.29393674,105290.0,105280.0,0.3608]
[1738248421614,1.84238674,105290.0,105280.0,0.3608]
[1738248422200,1.84238674,105290.0,105280.0,0.37043701]
[1738248422602,1.87366674,105290.0,105280.0,0.37043701]
[1738248423116,1.84238674,105290.0,105280.0,0.37043701]
[1738248423519,1.54845,105290.0,105280.0,0.37243701]
[1738248423816,1.738429,105290.0,105280.0,0.37243701]
[1738248424202,1.84238674,105290.0,105280.0,0.37243701]
[1738248424407,0.31845,105290.0,105280.0,0.66639275]
[1738248424606,0.24425363,105290.0,105280.0,1.08369275]
[1738248424811,0.23125363,105290.0,105280.0,1.08369275]
[1738248425119,0.23125363,105290.0,105280.0,0.81497275]
[1738248425307,0.23125363,105290.0,105280.0,0.97497275]
[1738248425708,0.17008697,105310.0,105300.0,0.189961]
[1738248425912,0.14139623,105310.0,105300.0,1.04679874]
[1738248426112,0.12197604,105310.0,105300.0,1.04679874]
[1738248426521,0.12197604,105310.0,105300.0,0.942841]
[1738248427414,0.12197604,105310.0,105300.0,1.04679874]
[1738248427814,0.0651,105320.0,105300.0,0.85683774]
[1738248428117,0.0651,105320.0,105310.0,0.550743]
[1738248429221,0.0651,105320.0,105310.0,0.3608]
[1738248429521,0.1247,105320.0,105310.0,0.3608]
[1738248430216,0.1247,105320.0,105310.0,0.550743]
[1738248431715,0.1247,105320.0,105310.0,0.551743]
[1738248433519,0.1247,105320.0,105310.0,0.3618]
[1738248433918,0.1247,105320.0,105310.0,0.551743]
[1738248436720,0.4987,105330.0,105320.0,0.189925]
[1738248436933,0.66505774,105330.0,105320.0,0.550725]
[1738248437927,0.66505774,105330.0,105320.0,0.551725]
[1738248438127,0.66505774,105330.0,105320.0,0.552725]
[1738248438625,0.4987,105330.0,105320.0,0.68792274]
[1738248439017,0.4987,105330.0,105320.0,0.75142274]
[1738248439320,0.49195889,105330.0,105320.0,0.75142274]
[1738248439827,2.04040889,105330.0,105320.0,0.75142274]
[1738248440219,2.04040889,105330.0,105320.0,0.75042274]
[1738248440925,0.22715774,105350.0,105340.0,0.189889]
[1738248441230,0.1232,105350.0,105340.0,0.942729]
[1738248441525,0.22715774,105350.0,105340.0,0.942729]
[1738248442025,0.22715774,105350.0,105340.0,0.911489]
[1738248442914,0.22715774,105350.0,105340.0,0.912489]
[1738248443223,0.22715774,105350.0,105340.0,0.913489]
[1738248443425,0.1232,105350.0,105340.0,0.913489]
[1738248443626,0.0608,105350.0,105340.0,1.01744674]
[1738248444127,0.1222,105350.0,105340.0,1.01744674]
[1738248444519,0.1222,105350.0,105340.0,0.913489]
[1738248444822,0.22615774,105350.0,105340.0,0.913489]
[1738248445021,0.1222,105350.0,105340.0,0.913489]
[1738248445927,0.29523593,105360.0,105340.0,0.913489]
[1738248446224,0.12442419,105360.0,105350.0,0.3608]
[1738248446527,0.06542419,105360.0,105350.0,0.68586874]
[1738248446717,0.064,105360.0,105350.0,0.68586874]
[1738248447228,0.14178717,105370.0,105360.0,0.189853]
[1738248447530,0.14178717,105370.0,105360.0,0.550653]
[1738248447924,0.42804491,105380.0,105360.0,0.65461074]
[1738248448226,0.39560417,105380.0,105370.0,0.3608]
[1738248448424,0.51430417,105380.0,105370.0,0.3608]
[1738248448628,0.61826191,105380.0,105370.0,0.3608]
[1738248449329,0.42844491,105380.0,105370.0,0.3608]
[1738248449524,0.61826691,105380.0,105370.0,0.3618]
[1738248450121,0.61826691,105380.0,105370.0,0.001]
[1738248450920,0.61826691,105380.0,105370.0,0.002]
[1738248451630,0.97906691,105380.0,105370.0,0.002]
[1738248451931,0.189835,105370.0,105360.0,0.37038263]
[1738248452232,0.29379274,105370.0,105360.0,0.37038263]
[1738248453331,0.29479274,105370.0,105360.0,0.37238263]
[1738248455921,0.29375974,105390.0,105360.0,0.50754037]
[1738248456128,0.72205966,105400.0,105380.0,0.911414]
[1738248456433,0.72205966,105400.0,105390.0,0.3608]
[1738248456434,0.61810192,105400.0,105390.0,0.3608]
[1738248456633,0.47631475,105400.0,105390.0,0.3608]
[1738248457823,0.58127249,105400.0,105390.0,0.551599]
[1738248458330,0.58127249,105400.0,105390.0,0.3618]
[1738248458526,0.58127249,105400.0,105390.0,0.001]
[1738248459330,0.58127249,105400.0,105390.0,0.002]
[1738248459723,0.58127249,105400.0,105390.0,0.191799]
[1738248459927,0.58127249,105400.0,105390.0,0.3628]
[1738248460631,0.58127249,105400.0,105390.0,0.552599]
[1738248461029,0.58127249,105400.0,105390.0,0.0115111]
[1738248461232,0.189799,105390.0,105380.0,0.3609426]
[1738248461430,0.10395774,105390.0,105380.0,0.56033935]
[1738248462626,0.10395774,105390.0,105380.0,0.56133935]
[1738248463533,0.10495774,105390.0,105380.0,0.56133935]
[1738248464421,0.10495774,105390.0,105380.0,0.37152235]
[1738248464623,0.29475674,105390.0,105380.0,0.37152235]
[1738248465930,0.10495774,105390.0,105380.0,0.56133935]
[1738248466132,0.10495774,105390.0,105380.0,0.37152235]
[1738248467436,0.29475674,105390.0,105380.0,0.37152235]
[1738248468538,0.10495774,105390.0,105380.0,0.37152235]
[1738248469042,0.001,105390.0,105380.0,0.56133935]
[1738248469246,0.10495774,105390.0,105380.0,0.56133935]
[1738248469736,0.001,105390.0,105380.0,0.56133935]
[1738248470141,0.10495774,105390.0,105380.0,0.37152235]
[1738248470837,0.001,105390.0,105380.0,0.37152235]
[1738248471042,0.001,105390.0,105380.0,0.57602394]
[1738248471249,0.001,105390.0,105380.0,0.57602554]
[1738248471430,0.001,105390.0,105380.0,0.38620854]
[1738248471632,0.001,105390.0,105380.0,0.57602554]
[1738248471934,0.10495774,105390.0,105380.0,0.57602554]
[1738248472542,0.001,105390.0,105380.0,0.57602554]
[1738248472835,0.001,105390.0,105380.0,0.38620469]
[1738248473028,0.10495774,105390.0,105380.0,0.38620469]
[1738248475134,0.39871448,105390.0,105380.0,0.38627211]
[1738248475342,0.39871448,105390.0,105380.0,0.37152235]
[1738248475543,0.39871448,105390.0,105380.0,0.01072235]
[1738248475744,0.29475674,105390.0,105380.0,0.01072235]
[1738248476642,0.29475674,105390.0,105370.0,0.3608]
[1738248476643,0.42987448,105390.0,105370.0,0.3608]
[1738248476839,0.29377474,105380.0,105370.0,0.3608]
[1738248478243,0.1909446,105390.0,105370.0,0.67026505]
[1738248478540,0.1909446,105390.0,105380.0,0.3608]
[1738248478741,0.29490234,105390.0,105380.0,0.3608]
[1738248480034,0.43646955,105390.0,105380.0,0.3608]
[1738248480348,0.33251181,105390.0,105380.0,0.3608]
[1738248480545,0.43646955,105390.0,105380.0,0.3608]
[1738248481152,0.43646955,105390.0,105380.0,0.3618]
[1738248481352,0.43646955,105390.0,105380.0,0.37120809]
[1738248482245,0.14270981,105390.0,105380.0,0.56102509]
[1738248482933,0.24666755,105390.0,105380.0,0.56102509]
[1738248483245,0.20016233,105430.0,105420.0,0.189745]
[1738248483433,0.19873916,105430.0,105420.0,0.65450274]
[1738248483633,0.19873916,105430.0,105420.0,0.86866274]
[1738248484143,0.10363916,105430.0,105420.0,0.88331416]
[1738248484537,0.00142001,105440.0,105430.0,0.189727]
[1738248484738,0.20924338,105450.0,105440.0,0.189709]
[1738248485038,0.1020794,105460.0,105450.0,0.189691]
[1738248485039,0.1620794,105460.0,105450.0,0.189691]
[1738248485337,0.19560598,105460.0,105450.0,0.3608]
[1738248485557,0.19560598,105460.0,105450.0,0.39196]
[1738248485842,0.25870598,105460.0,105450.0,0.39196]
[1738248486145,0.44837898,105460.0,105450.0,0.3608]
[1738248486350,0.50917898,105460.0,105450.0,0.3608]
[1738248487044,0.40522124,105460.0,105450.0,0.3608]
[1738248487242,0.50917898,105460.0,105450.0,0.3608]
[1738248487541,0.50917898,105460.0,105450.0,0.3618]
[1738248488346,0.41753074,105460.0,105450.0,0.3618]
[1738248488646,0.35673074,105460.0,105450.0,0.3618]
[1738248488838,0.16705774,105460.0,105450.0,0.3618]
[1738248489446,0.35673074,105460.0,105450.0,0.3618]
[1738248490544,0.35673074,105460.0,105450.0,0.3608]
[1738248491542,0.10395774,105460.0,105450.0,0.3608]
[1738248491750,0.29363074,105460.0,105450.0,0.3608]
[1738248492541,0.35363074,105460.0,105450.0,0.3608]
[1738248493644,0.29363074,105460.0,105450.0,0.3608]
[1738248493948,0.35431774,105470.0,105450.0,0.550491]
[1738248494146,0.16465774,105470.0,105460.0,0.3608]
[1738248495450,0.0607,105470.0,105460.0,0.65443074]
[1738248495647,0.0607,105470.0,105460.0,0.550473]
[1738248496151,0.35431274,105470.0,105460.0,0.39196]
[1738248496337,0.35431274,105470.0,105460.0,0.40134324]
[1738248496749,0.16465774,105470.0,105460.0,0.40134324]
[1738248496949,0.16465774,105470.0,105460.0,0.40234324]
[1738248497547,0.16465774,105470.0,105460.0,0.40134324]
[1738248497747,0.16465774,105470.0,105450.0,0.3609426]
[1738248497952,0.250355,105470.0,105460.0,0.3608]
[1738248499156,0.35431274,105470.0,105460.0,0.3608]
[1738248501048,0.16465774,105470.0,105460.0,0.3608]
[1738248504560,0.0607,105470.0,105460.0,0.3608]
[1738248504757,0.1195,105480.0,105470.0,0.189655]
[1738248504953,0.1195,105480.0,105470.0,0.550455]
[1738248505254,0.0596,105480.0,105470.0,0.550455]
[1738248506159,0.0596,105480.0,105470.0,0.581575]
[1738248506849,0.0601,105490.0,105470.0,0.68553274]
[1738248507044,0.16405774,105490.0,105480.0,0.3608]
[1738248507255,0.35367674,105490.0,105480.0,0.3608]
[1738248508060,0.16405774,105490.0,105480.0,0.3608]
[1738248508247,0.16405774,105490.0,105480.0,0.3618]
[1738248508949,0.16405774,105490.0,105480.0,0.3628]
[1738248510361,0.0601,105490.0,105480.0,0.3628]
[1738248510662,0.0601,105490.0,105480.0,0.552437]
[1738248511363,0.16405774,105490.0,105480.0,0.3774571]
[1738248511552,0.35367674,105490.0,105480.0,0.3774571]
[1738248512062,0.1,105500.0,105480.0,0.52882384]
[1738248512255,0.1,105500.0,105490.0,0.581539]
[1738248512763,0.1,105500.0,105490.0,0.643939]
[1738248512964,0.20395774,105500.0,105490.0,0.39192]
[1738248513261,0.20395774,105500.0,105490.0,0.3608]
[1738248513464,0.26085774,105500.0,105490.0,0.3608]
[1738248513763,0.599619,105490.0,105480.0,0.3764571]
[1738248514064,0.70357674,105490.0,105480.0,0.3764571]
[1738248514962,0.70357674,105490.0,105480.0,0.3754571]
[1738248515349,0.70357674,105490.0,105480.0,0.54507318]
[1738248515350,0.57365774,105490.0,105480.0,0.54507318]
[1738248515564,0.4697,105490.0,105480.0,0.54507318]
[1738248516371,0.57365774,105490.0,105480.0,0.54507318]
[1738248516564,0.57365774,105490.0,105480.0,0.54476831]
[1738248516761,0.16365774,105490.0,105480.0,0.54476831]
[1738248517174,0.76327674,105490.0,105480.0,0.54476831]
[1738248518572,0.16365774,105490.0,105480.0,0.54476831]
[1738248519178,0.35327674,105490.0,105480.0,0.54476831]
[1738248519781,0.30453048,105510.0,105480.0,0.37515223]
[1738248519962,0.10538,105520.0,105500.0,0.7216]
[1738248520167,0.10538,105520.0,105510.0,0.3608]
[1738248520772,0.00142226,105520.0,105510.0,0.550383]
[1738248521173,0.10538,105520.0,105510.0,0.551383]
[1738248521369,0.10538,105520.0,105510.0,0.3618]
[1738248521964,0.10538,105520.0,105510.0,0.551383]
[1738248522671,0.294946,105520.0,105510.0,0.3618]
[1738248523179,0.294946,105520.0,105510.0,0.3628]
[1738248523771,0.294946,105520.0,105510.0,0.002]
[1738248523975,0.655746,105520.0,105510.0,0.002]
[1738248524272,0.326066,105520.0,105510.0,0.002]
[1738248524689,0.39749848,105510.0,105500.0,0.53055868]
[1738248525071,0.00142226,105520.0,105500.0,0.66563642]
[1738248525271,0.29350874,105530.0,105520.0,0.189565]
[1738248525473,0.10395774,105530.0,105520.0,0.550365]
[1738248525676,0.29347374,105550.0,105530.0,0.189533]
[1738248525887,0.29348774,105540.0,105530.0,0.550333]
[1738248526072,0.189548,105530.0,105520.0,0.3608]
[1738248526273,0.189548,105530.0,105520.0,0.3609426]
[1738248526274,0.35160574,105530.0,105520.0,0.3609426]
[1738248526576,0.35160574,105530.0,105520.0,0.0001426]
[1738248526981,0.35160574,105530.0,105520.0,0.3609426]
[1738248527181,0.0591,105530.0,105520.0,0.5515076]
[1738248527385,0.001,105530.0,105520.0,0.5515076]
[1738248527674,1.181,105530.0,105520.0,0.5515076]
[1738248527876,1.181,105530.0,105520.0,0.5505076]
[1738248528081,1.28495774,105530.0,105520.0,0.5515076]
[1738248528382,1.181,105530.0,105520.0,0.5515076]
[1738248528572,1.28495774,105530.0,105520.0,0.5545076]
[1738248528774,1.47450574,105530.0,105520.0,0.5545076]
[1738248528972,1.181,105530.0,105520.0,0.5545076]
[1738248529680,1.18,105530.0,105520.0,0.5555076]
[1738248529883,0.40939274,105540.0,105520.0,0.5555076]
[1738248531083,0.29350574,105530.0,105520.0,0.3619426]
[1738248531385,0.189548,105530.0,105520.0,0.5555076]
[1738248532280,0.189548,105530.0,105520.0,0.57066051]
[1738248532785,1.47350574,105530.0,105520.0,0.38109551]
[1738248534080,0.29350574,105530.0,105520.0,0.38109551]
[1738248534586,1.47350574,105530.0,105520.0,0.02029551]
[1738248534981,0.189548,105530.0,105520.0,0.57066151]
[1738248536991,0.29350574,105530.0,105520.0,0.57066151]
[1738248537990,1.47350574,105530.0,105520.0,0.38109551]
[1738248538193,0.29350574,105530.0,105520.0,0.38109551]
[1738248540192,0.189583,105510.0,105500.0,0.53183769]
[1738248540397,0.39749848,105510.0,105500.0,0.53183769]
[1738248540695,0.45219848,105510.0,105500.0,0.16961608]
[1738248540993,0.29350774,105530.0,105510.0,0.189583]
[1738248541195,0.29350774,105530.0,105520.0,0.3608]
[1738248541397,0.29365034,105530.0,105520.0,0.3608]
[1738248541594,0.189565,105520.0,105510.0,0.0001426]
[1738248541793,0.29352274,105520.0,105510.0,0.0001426]
[1738248542299,0.29352274,105520.0,105510.0,0.0071426]
[1738248543303,0.35242274,105520.0,105510.0,0.0071426]
[1738248543800,0.248465,105520.0,105510.0,0.5505256]
[1738248544101,0.0589,105520.0,105510.0,0.5565256]
[1738248544404,0.35242274,105520.0,105510.0,0.5565256]
[1738248544999,0.35242274,105520.0,105510.0,0.5585256]
[1738248545388,0.35242274,105520.0,105510.0,0.1977256]
[1738248545593,0.35242274,105520.0,105510.0,0.0081426]
[1738248546092,1.47352274,105520.0,105510.0,0.0081426]
[1738248546293,0.17004167,105530.0,105520.0,0.189565]
[1738248546502,0.17004167,105530.0,105520.0,0.582605]
[1738248547092,0.17004167,105530.0,105520.0,0.68656274]
[1738248547593,0.17004167,105530.0,105520.0,0.65832274]
[1738248547906,0.17004167,105530.0,105520.0,0.586525]
[1738248548396,0.17004167,105530.0,105520.0,0.39796]
[1738248548599,0.46354741,105530.0,105520.0,0.3658]
[1738248549311,0.46354741,105530.0,105520.0,0.005]
[1738248550195,0.29364834,105530.0,105520.0,0.005]
[1738248550700,0.0001426,105530.0,105520.0,0.555365]
[1738248550907,0.0001426,105530.0,105520.0,1.08578274]
[1738248551595,0.0001426,105530.0,105520.0,0.981825]
[1738248554901,1.90059681,105550.0,105520.0,0.981825]
[1738248555102,0.25541972,105590.0,105580.0,0.189458]
[1738248555295,0.02711972,105590.0,105580.0,0.51721574]
[1738248555494,0.36339969,105600.0,105590.0,0.18944]
[1738248555706,0.31217965,105610.0,105590.0,0.49867774]
[1738248556003,0.31217965,105610.0,105600.0,0.550222]
[1738248556409,0.31217965,105610.0,105600.0,0.3608]
[1738248557207,0.29717965,105610.0,105600.0,0.3608]
[1738248557610,0.29717965,105610.0,105600.0,0.550222]
[1738248557902,0.29717965,105610.0,105600.0,0.70526237]
[1738248558602,0.29717965,105610.0,105600.0,0.70626237]
[1738248559295,1.5,105630.0,105600.0,0.51684037]
[1738248559500,1.5,105630.0,105620.0,0.910986]
[1738248559801,0.189317,105660.0,105630.0,0.189367]
[1738248559999,0.46055737,105660.0,105650.0,0.3608]
[1738248560201,0.18935,105640.0,105630.0,0.3609426]
[1738248560397,0.34439037,105640.0,105630.0,0.3609426]
[1738248560609,0.18935,105640.0,105630.0,0.3609426]
[1738248560806,1.689337,105650.0,105630.0,0.3609426]
[1738248561006,1.689337,105650.0,105640.0,0.3608]
[1738248561404,1.5,105650.0,105640.0,0.55015]
[1738248562414,1.690332,105650.0,105640.0,0.3608]
[1738248563309,0.001,105650.0,105640.0,0.55015]
[1738248563504,0.190332,105650.0,105640.0,0.39492]
[1738248563705,0.190332,105650.0,105640.0,0.3608]
[1738248563706,0.34537237,105650.0,105640.0,0.3608]
[1738248563910,0.21594037,105650.0,105630.0,0.3950626]
[1738248564109,0.34439037,105640.0,105630.0,0.3609426]
[1738248564908,0.51584037,105640.0,105610.0,0.584237]
[1738248565115,0.34442637,105620.0,105610.0,0.3608]
[1738248565311,0.34442637,105620.0,105600.0,1.117259]
[1738248565312,1.689404,105610.0,105600.0,1.117259]
[1738248565501,1.689404,105610.0,105600.0,0.92784]
[1738248565703,1.84444437,105610.0,105600.0,0.3608]
[1738248566107,0.03404,105620.0,105610.0,0.189404]
[1738248566108,0.0001426,105620.0,105610.0,0.189404]
[1738248566307,0.0001426,105620.0,105610.0,0.550204]
[1738248566515,0.0001426,105620.0,105610.0,0.70524437]
[1738248566916,0.0001426,105620.0,105610.0,0.550204]
[1738248567617,0.0001426,105620.0,105610.0,0.3608]
[1738248567917,0.34456897,105620.0,105610.0,0.002]
[1738248568113,0.2507286,105620.0,105610.0,0.3628]
[1738248568709,0.0613426,105620.0,105610.0,0.552204]
[1738248569207,0.0001426,105620.0,105610.0,0.70724437]
[1738248569604,0.0001426,105620.0,105610.0,0.77444437]
[1738248570017,0.0001426,105620.0,105610.0,0.80852437]
[1738248570412,0.189317,105660.0,105630.0,0.189352]
[1738248570609,0.19072108,105670.0,105650.0,0.189331]
[1738248570914,0.34436437,105660.0,105640.0,0.395]
[1738248571113,0.249732,105650.0,105640.0,0.3608]
[1738248571714,0.312532,105650.0,105640.0,0.3608]
[1738248572610,0.1232,105650.0,105640.0,0.3608]
[1738248573015,0.001,105660.0,105650.0,0.189332]
[1738248573220,0.001,105660.0,105650.0,0.550132]
[1738248573705,0.00142108,105670.0,105660.0,0.189314]
[1738248573906,0.00142108,105670.0,105660.0,0.73975437]
[1738248574219,0.00142108,105670.0,105660.0,0.584714]
[1738248574609,0.00142108,105670.0,105660.0,0.73967437]
[1738248574810,0.00684258,105690.0,105660.0,0.81584037]
[1738248575013,0.00684258,105690.0,105680.0,1.22095974]
[1738248575212,0.0980967,105700.0,105690.0,0.189261]
[1738248575417,0.0068,105720.0,105710.0,0.189225]
[1738248575610,0.36952822,105760.0,105740.0,0.189154]
[1738248575808,0.36952822,105760.0,105750.0,0.73959337]
[1738248576007,0.03701,105770.0,105760.0,0.189135]
[1738248576222,0.28011151,105790.0,105760.0,0.86001574]
[1738248576427,0.28011151,105790.0,105780.0,1.06574037]
[1738248576721,0.28011151,105790.0,105780.0,0.82253985]
[1738248576925,0.1891,105780.0,105770.0,0.36094192]
[1738248577215,0.23807985,105780.0,105770.0,0.36094192]
[1738248577821,0.1891,105780.0,105770.0,0.36094192]
[1738248578319,0.28011151,105790.0,105770.0,0.00014192]
[1738248578518,0.28011151,105790.0,105780.0,0.03548]
[1738248578519,0.46919351,105790.0,105780.0,0.03548]
[1738248578819,0.46919351,105790.0,105770.0,0.55105492]
[1738248579020,0.64091151,105790.0,105770.0,0.36194192]
[1738248579217,0.46919951,105790.0,105770.0,0.36194192]
[1738248579412,0.42717985,105780.0,105770.0,0.36194192]
[1738248579621,0.78797985,105780.0,105770.0,0.00114192]
[1738248579915,0.78797985,105780.0,105750.0,0.36221824]
[1738248579916,0.189135,105760.0,105750.0,0.36221824]
[1738248580113,0.42721485,105760.0,105750.0,0.36221824]
[1738248580313,0.42721485,105760.0,105750.0,0.00141824]
[1738248580713,0.23807985,105760.0,105740.0,0.549963]